bitfinex-derivatives/quotes_BTCF0:USTF0_20250901
["timestamp","ask_amount","ask_price","bid_price","bid_amount"]
[1756750028323,1.66784241,109140.0,109130.0,0.08234]
[1756750028518,1.66684241,109140.0,109130.0,0.08234]
[1756750028720,1.66484241,109140.0,109130.0,0.08234]
[1756750030918,1.66484241,109140.0,109130.0,0.04697]
[1756750031118,1.66484241,109140.0,109130.0,0.08077]
[1756750031324,1.96970361,109140.0,109130.0,0.08077]
[1756750031524,1.96970361,109140.0,109130.0,0.04697]
[1756750032126,1.66484241,109140.0,109130.0,0.04697]
[1756750032424,0.03933637,109140.0,109130.0,0.69157]
[1756750032630,0.03933637,109140.0,109130.0,1.7529195]
[1756750032921,0.03933637,109140.0,109130.0,1.4480583]
[1756750033128,0.03933637,109140.0,109130.0,1.0880583]
[1756750033322,0.02,109140.0,109130.0,1.1231971]
[1756750033523,0.02,109140.0,109130.0,1.0880583]
[1756750033831,0.02,109140.0,109130.0,1.47713806]
[1756750034126,0.02,109140.0,109130.0,1.17427686]
[1756750034327,0.02,109140.0,109130.0,1.47913806]
[1756750034532,0.02,109140.0,109130.0,1.09913806]
[1756750034724,0.02,109140.0,109130.0,1.41913806]
[1756750034919,0.02,109140.0,109130.0,1.11627686]
[1756750035120,0.02,109140.0,109130.0,1.10627686]
[1756750035321,0.02,109140.0,109130.0,1.40913806]
[1756750035523,0.02,109140.0,109130.0,1.41013806]
[1756750035719,0.02,109140.0,109130.0,1.40813806]
[1756750035922,0.02,109140.0,109130.0,1.40913806]
[1756750036118,0.02,109140.0,109130.0,1.41113806]
[1756750036719,0.02,109140.0,109130.0,1.10627686]
[1756750036925,0.02,109140.0,109130.0,1.41113806]
[1756750037329,0.02,109140.0,109130.0,1.10627686]
[1756750037524,0.02,109140.0,109130.0,1.41571806]
[1756750037727,0.02,109140.0,109130.0,1.46486058]
[1756750038633,0.02,109140.0,109130.0,1.47578082]
[1756750038932,0.02,109140.0,109130.0,1.0956383]
[1756750039231,0.02,109140.0,109130.0,1.40315372]
[1756750039428,0.02,109140.0,109130.0,1.0956392]
[1756750039630,0.02,109140.0,109130.0,1.4556392]
[1756750039826,0.02,109140.0,109130.0,0.69915]
[1756750040031,0.02,109140.0,109130.0,0.69815]
[1756750040234,0.02,109140.0,109130.0,1.3730112]
[1756750040738,0.02,109140.0,109130.0,0.69815]
[1756750040932,0.02,109140.0,109130.0,1.3630112]
[1756750041133,0.02,109140.0,109130.0,1.454639]
[1756750041436,0.02,109140.0,109130.0,0.69715]
[1756750041635,0.02,109140.0,109130.0,1.1120112]
[1756750042035,0.02,109140.0,109130.0,0.44715]
[1756750042339,0.02,109140.0,109130.0,1.0920112]
[1756750042730,0.02,109140.0,109130.0,0.44715]
[1756750043032,0.02,109140.0,109130.0,1.9739312]
[1756750043330,0.02,109140.0,109130.0,1.9339312]
[1756750043932,0.02,109140.0,109130.0,0.75715]
[1756750044137,0.02,109140.0,109130.0,0.3912112]
[1756750045335,0.02,109140.0,109130.0,0.7510112]
[1756750045641,0.021,109140.0,109130.0,0.7510112]
[1756750046239,0.021,109140.0,109130.0,0.7520112]
[1756750046438,0.021,109140.0,109130.0,1.0720112]
[1756750047240,0.021,109140.0,109130.0,1.12115372]
[1756750047743,0.021,109140.0,109130.0,0.49629252]
[1756750047940,0.021,109140.0,109130.0,1.13115372]
[1756750048440,0.02,109140.0,109130.0,1.13115372]
[1756750049045,0.02,109140.0,109130.0,0.80115372]
[1756750049244,0.27,109140.0,109130.0,0.13549252]
[1756750049844,0.27,109140.0,109130.0,0.44035372]
[1756750050338,0.27,109140.0,109130.0,0.13549252]
[1756750050936,0.27,109140.0,109130.0,0.13449252]
[1756750052043,0.27,109140.0,109130.0,0.43935372]
[1756750052342,0.271,109140.0,109130.0,0.74935372]
[1756750052537,0.271,109140.0,109130.0,0.44449252]
[1756750052737,0.271,109140.0,109130.0,0.43935372]
[1756750052938,0.271,109140.0,109130.0,0.80015372]
[1756750053141,0.27,109140.0,109130.0,0.80015372]
[1756750053952,0.27,109140.0,109130.0,1.18115372]
[1756750054839,0.27,109140.0,109130.0,0.80115372]
[1756750055031,0.27,109140.0,109130.0,1.13115372]
[1756750055445,0.27,109140.0,109130.0,0.80115372]
[1756750055646,0.27,109140.0,109130.0,1.13115372]
[1756750057544,0.02,109140.0,109130.0,1.13115372]
[1756750058444,0.02,109140.0,109130.0,1.0820112]
[1756750058753,0.02,109140.0,109130.0,0.77715]
[1756750058945,0.02,109140.0,109130.0,1.0820112]
[1756750059850,0.02,109140.0,109130.0,1.1320112]
[1756750060040,0.02,109140.0,109130.0,2.0028912]
[1756750062455,0.02,109140.0,109130.0,2.40973849]
[1756750063047,0.02,109140.0,109130.0,2.71371969]
[1756750063438,0.02,109140.0,109130.0,2.10399729]
[1756750063640,0.02,109140.0,109130.0,2.40885849]
[1756750065449,0.02,109140.0,109130.0,2.40869849]
[1756750068046,0.02,109140.0,109130.0,2.40805849]
[1756750068649,0.02,109140.0,109130.0,2.40785849]
[1756750069754,0.02,109140.0,109130.0,2.40761849]
[1756750070455,0.02,109140.0,109130.0,1.53885849]
[1756750070652,0.02,109140.0,109130.0,2.40713849]
[1756750070955,0.02,109140.0,109130.0,1.53885849]
[1756750071155,0.02,109140.0,109130.0,2.40689849]
[1756750073163,0.02,109140.0,109130.0,1.53885849]
[1756750073361,0.02,109140.0,109130.0,2.40629849]
[1756750073956,0.02,109140.0,109130.0,2.06467139]
[1756750076461,0.02,109140.0,109130.0,1.19723139]
[1756750076757,0.27,109140.0,109130.0,1.75905019]
[1756750076959,0.27,109140.0,109130.0,2.06391139]
[1756750077659,0.27,109140.0,109130.0,1.18103683]
[1756750077858,0.27,109140.0,109130.0,2.04771683]
[1756750078861,0.27,109140.0,109130.0,0.87617563]
[1756750079062,0.27,109140.0,109130.0,1.74269563]
[1756750079255,0.02,109140.0,109130.0,0.87617563]
[1756750079459,0.02,109140.0,109130.0,1.74241563]
[1756750080361,0.02,109140.0,109130.0,2.04727683]
[1756750080656,0.02,109140.0,109130.0,2.04627683]
[1756750080961,0.021,109140.0,109130.0,2.04627683]
[1756750081362,0.021,109140.0,109130.0,1.18003683]
[1756750081562,0.021,109140.0,109130.0,2.04595683]
[1756750082062,0.021,109140.0,109130.0,2.04547683]
[1756750082463,0.021,109140.0,109130.0,1.18103683]
[1756750082666,0.021,109140.0,109130.0,2.04627683]
[1756750082962,0.02,109140.0,109130.0,2.04627683]
[1756750083165,0.02,109140.0,109130.0,2.13790383]
[1756750083567,0.02,109140.0,109130.0,2.13690383]
[1756750083765,0.02,109140.0,109130.0,2.13790383]
[1756750084566,0.02,109140.0,109130.0,2.13990383]
[1756750085261,0.02,109140.0,109130.0,2.04827683]
[1756750085661,0.02,109140.0,109130.0,2.13990383]
[1756750085864,0.02,109140.0,109130.0,2.13890383]
[1756750086062,0.02,109140.0,109130.0,2.14090383]
[1756750086763,0.02,109140.0,109130.0,2.04927683]
[1756750087771,0.02,109140.0,109130.0,1.1350112]
[1756750088070,0.02,109140.0,109130.0,1.9996512]
[1756750088256,0.02,109140.0,109130.0,2.06487139]
[1756750088462,0.02,109140.0,109130.0,1.76009019]
[1756750088662,0.02,109140.0,109130.0,1.9997312]
[1756750089463,0.02,109140.0,109130.0,1.69475]
[1756750089668,0.02,109140.0,109130.0,1.9996112]
[1756750090376,0.02,109140.0,109130.0,1.1350112]
[1756750090568,0.02,109140.0,109130.0,1.9991312]
[1756750092076,0.02,109140.0,109130.0,2.06435139]
[1756750092270,0.02,109140.0,109130.0,1.75949019]
[1756750092480,0.02,109140.0,109130.0,2.06435139]
[1756750092982,0.02,109140.0,109130.0,1.75885019]
[1756750093180,0.02,109140.0,109130.0,1.69343]
[1756750093576,0.02,109140.0,109130.0,1.69355]
[1756750095485,0.02,109140.0,109130.0,0.83015]
[1756750095684,0.02,109140.0,109130.0,1.69355]
[1756750096786,0.02,109140.0,109130.0,0.83015]
[1756750097086,0.02,109140.0,109130.0,1.69267]
[1756750097277,0.02,109140.0,109130.0,0.83015]
[1756750097475,0.02,109140.0,109130.0,1.69251]
[1756750098281,0.9356612,109140.0,109130.0,0.5083745]
[1756750098481,0.9356612,109140.0,109130.0,0.54106126]
[1756750098680,0.9356612,109140.0,109130.0,0.12203676]
[1756750098892,2.1025624,109140.0,109130.0,0.05555]
[1756750099571,2.1025624,109140.0,109130.0,0.00658]
[1756750099776,2.1035624,109140.0,109130.0,0.00658]
[1756750100776,2.1065624,109140.0,109130.0,0.00658]
[1756750101184,2.1065624,109140.0,109130.0,0.00458]
[1756750101381,1.2445224,109140.0,109130.0,0.00458]
[1756750101783,1.49632,109140.0,109130.0,0.08813]
[1756750101983,2.1060424,109140.0,109130.0,0.08813]
[1756750102186,2.1060424,109140.0,109130.0,0.05093]
[1756750102187,2.1080424,109140.0,109130.0,0.05093]
[1756750102486,2.1080424,109140.0,109130.0,0.02788]
[1756750102686,2.1084024,109140.0,109130.0,0.05093]
[1756750102880,2.1084024,109140.0,109130.0,0.08813]
[1756750103188,1.8035412,109140.0,109130.0,0.08813]
[1756750103383,1.8035412,109140.0,109130.0,0.05093]
[1756750104384,2.1084024,109140.0,109130.0,0.05093]
[1756750104990,2.1084024,109140.0,109130.0,0.00458]
[1756750106295,1.49868,109140.0,109130.0,0.00458]
[1756750106505,2.1084024,109140.0,109130.0,0.00458]
[1756750107890,1.2465224,109140.0,109130.0,0.00458]
[1756750108196,2.1092824,109140.0,109130.0,0.00458]
[1756750112293,1.2465224,109140.0,109130.0,0.00458]
[1756750112495,2.1088424,109140.0,109130.0,0.00458]
[1756750113194,2.4788424,109140.0,109130.0,0.00458]
[1756750113394,1.6165224,109140.0,109130.0,0.00458]
[1756750113596,2.4781224,109140.0,109110.0,0.08355]
[1756750113796,0.6656612,109120.0,109110.0,0.08355]
[1756750113991,1.5271012,109120.0,109110.0,0.08355]
[1756750114296,0.6656612,109120.0,109110.0,0.08355]
[1756750114496,1.5270212,109120.0,109110.0,0.08355]
[1756750114795,1.5270212,109120.0,109110.0,0.08813]
[1756750115884,1.5280212,109120.0,109110.0,0.08813]
[1756750117993,1.5373069,109120.0,109110.0,0.08813]
[1756750118295,0.6759469,109120.0,109110.0,0.08813]
[1756750118494,1.5360669,109120.0,109110.0,0.08813]
[1756750122586,1.5360669,109120.0,109110.0,0.00458]
[1756750122787,1.91620373,109120.0,109110.0,0.00458]
[1756750123395,1.05608373,109120.0,109110.0,0.00458]
[1756750123600,1.91528373,109120.0,109110.0,0.00458]
[1756750123997,2.16528373,109120.0,109110.0,0.00458]
[1756750124600,1.30608373,109120.0,109110.0,0.00458]
[1756750125000,2.16524373,109120.0,109110.0,0.00458]
[1756750125702,2.16496373,109120.0,109110.0,0.00458]
[1756750128409,2.51496373,109120.0,109110.0,0.00458]
[1756750129007,2.81982493,109120.0,109110.0,0.00458]
[1756750130003,2.81982493,109120.0,109090.0,0.08413]
[1756750130199,0.6656612,109100.0,109090.0,0.08413]
[1756750130402,1.5245812,109100.0,109090.0,0.08413]
[1756750131703,0.6656612,109100.0,109090.0,0.08613]
[1756750131908,1.59886818,109100.0,109090.0,0.08813]
[1756750132304,1.29400698,109100.0,109090.0,0.08813]
[1756750132505,1.59870818,109100.0,109090.0,0.08813]
[1756750132913,1.59870818,109100.0,109090.0,0.08613]
[1756750133213,1.29480698,109100.0,109090.0,0.08613]
[1756750133509,0.07564698,109100.0,109090.0,0.33413]
[1756750133705,0.93396698,109100.0,109090.0,0.65413]
[1756750133904,0.93396698,109100.0,109090.0,0.33413]
[1756750134414,1.23882818,109100.0,109090.0,0.33413]
[1756750135107,1.59962818,109100.0,109090.0,0.33413]
[1756750136012,1.59954818,109100.0,109090.0,0.33413]
[1756750136515,1.29468698,109100.0,109090.0,0.33413]
[1756750136709,1.59954818,109100.0,109090.0,0.33413]
[1756750138214,1.59954818,109100.0,109090.0,0.08413]
[1756750138716,1.59954818,109100.0,109090.0,0.04781]
[1756750139010,1.59954818,109100.0,109090.0,0.08413]
[1756750140312,0.74130818,109100.0,109090.0,0.08413]
[1756750140520,0.93324698,109100.0,109090.0,0.08413]
[1756750140818,0.93308698,109100.0,109090.0,0.39413]
[1756750141411,1.59874818,109100.0,109090.0,0.08413]
[1756750142011,1.59874818,109100.0,109090.0,0.04781]
[1756750144616,1.59874818,109100.0,109080.0,0.1095445]
[1756750144919,0.6656612,109090.0,109080.0,0.1331545]
[1756750145513,0.6656612,109090.0,109080.0,0.3831545]
[1756750145821,0.6656612,109090.0,109080.0,0.0732245]
[1756750146122,0.6656612,109090.0,109070.0,0.1340445]
[1756750146423,1.5226612,109080.0,109070.0,0.1340445]
[1756750147222,1.53196178,109080.0,109070.0,0.1340445]
[1756750148523,1.53296178,109080.0,109070.0,0.1340445]
[1756750149822,1.53496178,109080.0,109070.0,0.1340445]
[1756750150810,1.53496178,109080.0,109070.0,0.0505445]
[1756750151411,1.53496178,109080.0,109070.0,0.00152]
[1756750152218,1.53496178,109080.0,109070.0,0.0505445]
[1756750153223,1.53496178,109080.0,109070.0,0.0971945]
[1756750154313,1.53496178,109080.0,109070.0,0.0956745]
[1756750154725,1.53496178,109080.0,109070.0,0.1325245]
[1756750155019,0.67796178,109080.0,109070.0,0.1325245]
[1756750155228,1.22838058,109080.0,109070.0,0.1325245]
[1756750155424,1.53324178,109080.0,109070.0,0.1325245]
[1756750155730,1.53340178,109080.0,109070.0,0.1325245]
[1756750156228,1.53140178,109080.0,109070.0,0.1325245]
[1756750156925,1.17060178,109080.0,109070.0,0.1325245]
[1756750157227,1.53140178,109080.0,109070.0,0.1325245]
[1756750157527,1.53240178,109080.0,109070.0,0.1325245]
[1756750157726,0.002,109080.0,109070.0,0.1325245]
[1756750157926,0.85696,109080.0,109070.0,0.4933245]
[1756750158136,0.85796,109080.0,109070.0,0.4933245]
[1756750158729,0.85796,109080.0,109070.0,0.1325245]
[1756750159331,0.85596,109080.0,109070.0,0.1325245]
[1756750159829,0.85596,109080.0,109070.0,0.1335245]
[1756750160032,1.1608212,109080.0,109070.0,0.1335245]
[1756750160531,1.16997919,109080.0,109070.0,0.1335245]
[1756750160732,1.16997919,109080.0,109070.0,0.1325245]
[1756750164635,1.53077919,109080.0,109070.0,0.1325245]
[1756750165233,1.1598612,109080.0,109070.0,0.1325245]
[1756750168841,0.855,109080.0,109070.0,0.1325245]
[1756750170140,1.1598612,109080.0,109070.0,0.1325245]
[1756750170937,1.83477606,109080.0,109070.0,0.0490245]
[1756750171236,1.52991486,109080.0,109070.0,0.0490245]
[1756750172138,1.52991486,109080.0,109070.0,0.0721245]
[1756750172329,1.52991486,109080.0,109070.0,0.0490245]
[1756750172529,2.4141844,109080.0,109060.0,0.0505445]
[1756750172725,0.6656612,109070.0,109060.0,0.0505445]
[1756750173231,0.6656612,109070.0,109060.0,0.0956745]
[1756750173836,0.6656612,109070.0,109060.0,0.0966745]
[1756750175739,0.6666612,109070.0,109060.0,0.0966745]
[1756750176145,0.6666612,109070.0,109060.0,0.0956745]
[1756750177832,0.6666612,109070.0,109060.0,0.0490245]
[1756750178843,0.68637337,109070.0,109060.0,0.0490245]
[1756750179233,0.68637337,109070.0,109050.0,0.0739745]
[1756750179434,1.5196612,109060.0,109050.0,0.0505445]
[1756750180544,1.5196612,109060.0,109050.0,0.0515445]
[1756750181942,1.7696612,109060.0,109050.0,0.0515445]
[1756750182248,1.7696612,109060.0,109050.0,0.00252]
[1756750182640,1.78935796,109060.0,109050.0,0.00252]
[1756750183144,2.12935796,109060.0,109050.0,0.00252]
[1756750184043,1.27535796,109060.0,109050.0,0.00252]
[1756750184244,2.12939796,109060.0,109050.0,0.00252]
[1756750187347,2.43425916,109060.0,109030.0,0.0490245]
[1756750187554,1.0264612,109040.0,109020.0,0.0958745]
[1756750187861,1.5300612,109030.0,109020.0,0.08389]
[1756750188052,1.2252,109030.0,109020.0,0.04685]
[1756750188557,0.6656612,109030.0,109020.0,0.08389]
[1756750188754,1.5305412,109030.0,109020.0,0.08389]
[1756750189758,0.6656612,109030.0,109020.0,0.08389]
[1756750190162,1.5310212,109030.0,109020.0,0.08389]
[1756750191955,1.22612,109030.0,109020.0,0.08389]
[1756750192152,0.75016142,109030.0,109020.0,0.08389]
[1756750192352,1.61480142,109030.0,109020.0,0.08389]
[1756750199365,0.93832758,109030.0,109020.0,0.08389]
[1756750199562,0.07512758,109030.0,109020.0,0.6387512]
[1756750199753,0.86504,109030.0,109020.0,0.68389]
[1756750199958,0.86504,109030.0,109020.0,0.6387512]
[1756750200157,0.6656612,109040.0,109020.0,0.6387512]
[1756750200369,0.86488,109040.0,109030.0,0.3887512]
[1756750200669,0.93650176,109040.0,109030.0,0.6387512]
[1756750201360,0.93650176,109040.0,109030.0,0.33389]
[1756750203861,1.24136296,109040.0,109030.0,0.33389]
[1756750204763,1.24136296,109040.0,109030.0,0.04685]
[1756750205069,1.24136296,109040.0,109030.0,0.08091]
[1756750205271,1.24236296,109040.0,109030.0,0.08091]
[1756750205472,1.24336296,109040.0,109030.0,0.08091]
[1756750206672,1.24336296,109040.0,109030.0,0.04685]
[1756750207070,1.24336296,109040.0,109030.0,0.08091]
[1756750208482,1.24336296,109040.0,109030.0,0.04685]
[1756750208779,1.85416296,109040.0,109020.0,0.1033445]
[1756750208967,0.3048612,109030.0,109020.0,0.1033445]
[1756750209875,1.29930176,109040.0,109020.0,0.1374045]
[1756750210075,1.62433378,109040.0,109020.0,0.1374045]
[1756750210276,1.62433378,109040.0,109020.0,0.4982045]
[1756750210672,1.62433378,109040.0,109020.0,0.1374045]
[1756750211569,1.62333378,109040.0,109020.0,0.1374045]
[1756750211878,1.62233378,109040.0,109020.0,0.1374045]
[1756750212372,1.31747258,109040.0,109020.0,0.1374045]
[1756750212578,1.62233378,109040.0,109020.0,0.1374045]
[1756750213274,1.62233378,109040.0,109020.0,0.4982045]
[1756750214181,1.62233378,109040.0,109020.0,0.4641445]
[1756750214477,1.62233378,109040.0,109020.0,0.4982045]
[1756750214873,0.45259258,109040.0,109030.0,0.0838]
[1756750215078,0.09179258,109040.0,109030.0,0.3886612]
[1756750215474,0.95371258,109040.0,109030.0,0.3886612]
[1756750215777,0.95371258,109040.0,109030.0,0.0838]
[1756750216776,0.07162176,109040.0,109030.0,1.3294612]
[1756750216977,0.6656612,109060.0,109040.0,0.03406]
[1756750216978,0.86148,109050.0,109040.0,0.03406]
[1756750217172,0.86148,109050.0,109040.0,0.0838]
[1756750217173,0.93166975,109050.0,109040.0,0.0838]
[1756750218380,0.93266975,109050.0,109040.0,0.0838]
[1756750218880,0.93366975,109050.0,109040.0,0.0838]
[1756750219183,1.00686922,109050.0,109040.0,0.0838]
[1756750219877,0.09538922,109050.0,109040.0,1.02800991]
[1756750220085,0.07519947,109050.0,109040.0,0.64800991]
[1756750220284,0.07519947,109050.0,109040.0,0.96800991]
[1756750220675,0.07519947,109050.0,109040.0,1.32880991]
[1756750220875,0.07419947,109050.0,109040.0,1.33080991]
[1756750221380,0.07319947,109050.0,109040.0,1.33180991]
[1756750221683,1.22132,109060.0,109050.0,0.04787]
[1756750221885,1.58149886,109060.0,109050.0,0.09761]
[1756750223290,1.58249886,109060.0,109050.0,0.09761]
[1756750223789,1.27444385,109060.0,109050.0,1.1432712]
[1756750223984,0.07392385,109060.0,109050.0,0.45841]
[1756750224189,0.07392385,109060.0,109050.0,0.7632712]
[1756750224391,0.07392385,109060.0,109050.0,0.45841]
[1756750225291,0.07292385,109060.0,109050.0,0.45841]
[1756750225493,0.07192385,109060.0,109050.0,0.45841]
[1756750225690,3.47248341,109070.0,109050.0,0.45841]
[1756750225892,3.87264661,109070.0,109060.0,0.0838]
[1756750226695,0.4001632,109070.0,109060.0,0.0838]
[1756750226893,1.24084,109070.0,109060.0,0.7494612]
[1756750227096,0.38,109070.0,109060.0,0.7494612]
[1756750227598,0.381,109070.0,109060.0,0.7494612]
[1756750227799,0.381,109070.0,109060.0,0.4446]
[1756750228294,0.45261655,109070.0,109060.0,0.4446]
[1756750228487,0.28261655,109070.0,109060.0,0.4446]
[1756750229395,0.28261655,109070.0,109060.0,0.45372928]
[1756750229695,0.28361655,109070.0,109060.0,0.45372928]
[1756750230091,0.28361655,109070.0,109060.0,0.4446]
[1756750230292,0.28261655,109070.0,109060.0,0.4446]
[1756750230694,0.28161655,109070.0,109060.0,0.4446]
[1756750230996,0.28261655,109070.0,109060.0,0.4446]
[1756750231196,0.28261655,109070.0,109060.0,0.7494612]
[1756750231695,0.28161655,109070.0,109060.0,0.7494612]
[1756750231895,0.28261655,109070.0,109060.0,0.7494612]
[1756750232497,0.28261655,109070.0,109060.0,0.0838]
[1756750233304,0.28361655,109070.0,109060.0,0.0838]
[1756750234890,0.002,109070.0,109060.0,1.1294612]
[1756750236086,0.001,109070.0,109060.0,1.1294612]
[1756750236295,0.85932,109080.0,109070.0,0.03612]
[1756750236495,1.17932,109080.0,109070.0,0.08434]
[1756750237594,1.4841812,109080.0,109070.0,0.08434]
[1756750237899,1.55840186,109080.0,109070.0,0.08434]
[1756750238099,1.55940186,109080.0,109070.0,0.08434]
[1756750239804,1.25454066,109080.0,109070.0,0.08434]
[1756750240902,1.25554066,109080.0,109070.0,0.08434]
[1756750244302,1.61634066,109080.0,109070.0,0.08434]
[1756750244498,1.25554066,109080.0,109070.0,0.08434]
[1756750245105,1.27569225,109080.0,109070.0,0.08434]
[1756750245899,1.94135345,109080.0,109070.0,0.04822]
[1756750246101,1.94135345,109080.0,109060.0,0.3048612]
[1756750246102,2.49621465,109080.0,109060.0,0.02329]
[1756750246295,0.6656612,109070.0,109050.0,0.1333645]
[1756750246490,1.1617412,109060.0,109050.0,0.1333645]
[1756750247206,1.1617412,109060.0,109050.0,0.08434]
[1756750247606,1.17083581,109060.0,109050.0,0.08434]
[1756750247901,1.53163581,109060.0,109050.0,0.002]
[1756750248198,0.67475581,109060.0,109050.0,0.002]
[1756750248401,1.53151581,109060.0,109050.0,0.02529]
[1756750248595,1.17071581,109060.0,109050.0,0.0548]
[1756750248905,0.3608,109070.0,109050.0,0.10528]
[1756750249099,0.38097064,109070.0,109050.0,0.06916]
[1756750249302,0.68583184,109070.0,109060.0,0.08434]
[1756750249499,1.54247184,109070.0,109050.0,0.05706]
[1756750249705,1.54247184,109070.0,109050.0,0.10628]
[1756750250110,0.68583184,109070.0,109050.0,0.10628]
[1756750250303,0.85664,109060.0,109050.0,0.10628]
[1756750250700,0.86572088,109060.0,109050.0,0.10628]
[1756750251206,0.86572088,109060.0,109050.0,0.10528]
[1756750251409,1.22652088,109060.0,109050.0,0.10528]
[1756750251907,1.21744,109060.0,109050.0,0.10628]
[1756750252409,0.85636,109060.0,109050.0,0.10628]
[1756750252907,0.6656612,109070.0,109060.0,0.03612]
[1756750253106,1.86216591,109070.0,109060.0,0.08434]
[1756750253415,0.70098471,109070.0,109060.0,0.08434]
[1756750253710,1.54216591,109070.0,109060.0,0.08434]
[1756750253911,1.54216591,109070.0,109060.0,0.04822]
[1756750254105,1.54216864,109070.0,109060.0,0.04822]
[1756750254412,1.54216864,109070.0,109050.0,0.10328]
[1756750254599,0.3608,109060.0,109050.0,0.10328]
[1756750254805,0.6656612,109060.0,109050.0,0.02787]
[1756750255107,0.3048612,109060.0,109050.0,0.1523045]
[1756750255310,0.3608,109060.0,109050.0,0.1523045]
[1756750255502,0.3608,109060.0,109050.0,0.10428]
[1756750256002,0.3608,109060.0,109050.0,0.10628]
[1756750256310,1.5219812,109070.0,109050.0,0.1553045]
[1756750256515,1.54216825,109070.0,109050.0,0.1553045]
[1756750257403,0.3608,109060.0,109050.0,0.1533045]
[1756750257712,0.3608,109060.0,109050.0,0.10628]
[1756750257914,0.3809861,109060.0,109050.0,0.10528]
[1756750258213,1.5219812,109070.0,109050.0,0.10628]
[1756750258406,1.5421661,109070.0,109050.0,0.10628]
[1756750258808,0.3608,109060.0,109050.0,0.10628]
[1756750259109,0.6858461,109060.0,109050.0,0.00758]
[1756750260008,0.3809849,109060.0,109050.0,0.09192]
[1756750260213,0.6858461,109060.0,109050.0,0.0558]
[1756750260409,0.6858461,109060.0,109050.0,0.0548]
[1756750260615,0.6858461,109060.0,109050.0,0.0558]
[1756750261005,0.6858461,109060.0,109050.0,0.03087]
[1756750261206,0.6858461,109060.0,109050.0,0.02987]
[1756750261406,0.6858461,109060.0,109050.0,0.03087]
[1756750262208,0.6858461,109060.0,109050.0,0.00758]
[1756750264104,0.6858461,109060.0,109050.0,0.03087]
[1756750264312,0.6858461,109060.0,109050.0,0.0558]
[1756750264510,0.3809849,109060.0,109050.0,0.0558]
[1756750264711,0.6858461,109060.0,109050.0,0.0558]
[1756750266415,0.6858461,109060.0,109050.0,0.03087]
[1756750266816,0.6858461,109060.0,109050.0,0.0545]
[1756750267217,0.6858461,109060.0,109050.0,0.03087]
[1756750267714,0.6858461,109060.0,109050.0,0.00758]
[1756750267920,0.6656612,109060.0,109050.0,0.0803845]
[1756750268615,0.3608,109060.0,109050.0,0.0803845]
[1756750268814,0.6656612,109060.0,109050.0,0.0803845]
[1756750270414,0.6656612,109060.0,109050.0,1.0803845]
[1756750271916,0.6656612,109060.0,109050.0,1.0566045]
[1756750272422,0.3608,109060.0,109050.0,1.0566045]
[1756750272619,0.6656612,109060.0,109050.0,1.0566045]
[1756750275808,0.6858664,109060.0,109050.0,1.0566045]
[1756750277017,0.6858664,109060.0,109050.0,1.0913145]
[1756750277208,0.6858664,109060.0,109050.0,1.0566045]
[1756750277414,1.0458664,109060.0,109050.0,1.0566045]
[1756750277816,1.2958664,109060.0,109050.0,1.00758]
[1756750278018,1.6007276,109060.0,109050.0,1.00758]
[1756750281927,1.6007276,109060.0,109050.0,0.25990817]
[1756750283522,2.4567676,109060.0,109050.0,0.25990817]
[1756750284028,2.4570076,109060.0,109050.0,0.25990817]
[1756750284723,2.57657065,109060.0,109050.0,0.25990817]
[1756750285529,1.72013065,109060.0,109050.0,0.25990817]
[1756750285723,2.57669065,109060.0,109050.0,0.25990817]
[1756750286224,2.27182945,109060.0,109050.0,0.25990817]
[1756750287428,2.57669065,109060.0,109050.0,0.25990817]
[1756750296029,2.57669065,109060.0,109050.0,0.28368817]
[1756750296233,2.57669065,109060.0,109050.0,0.25990817]
[1756750297235,2.57869065,109060.0,109050.0,0.25990817]
[1756750298338,2.66856012,109060.0,109050.0,0.25990817]
[1756750299342,2.66856012,109060.0,109030.0,0.0353]
[1756750299343,2.66856012,109060.0,109030.0,0.08386]
[1756750299544,1.0264612,109040.0,109030.0,0.08386]
[1756750299730,2.2121864,109040.0,109030.0,0.08386]
[1756750311848,1.0518052,109040.0,109030.0,0.08386]
[1756750312053,2.2121464,109040.0,109030.0,0.08386]
[1756750314156,2.21276691,109040.0,109030.0,0.08386]
[1756750314453,2.51824862,109040.0,109030.0,0.08386]
[1756750316056,2.21277742,109040.0,109030.0,0.08386]
[1756750316556,1.0518052,109040.0,109030.0,0.63935222]
[1756750316958,1.7072052,109040.0,109030.0,0.63935222]
[1756750317149,1.5972052,109040.0,109030.0,0.63935222]
[1756750317552,1.5972052,109040.0,109030.0,0.33386]
[1756750317855,1.5972052,109040.0,109030.0,0.68837672]
[1756750318955,1.5972052,109040.0,109030.0,1.03837672]
[1756750319156,1.2364052,109040.0,109030.0,0.78837672]
[1756750319457,0.3810052,109040.0,109030.0,0.78837672]
[1756750319659,1.2363652,109040.0,109030.0,0.78837672]
[1756750320347,0.3810052,109040.0,109030.0,0.78837672]
[1756750320548,0.44766947,109060.0,109050.0,0.01423]
[1756750320852,1.61301747,109060.0,109050.0,0.09809]
[1756750321054,0.75765747,109060.0,109050.0,0.09809]
[1756750321352,1.61297747,109060.0,109050.0,0.40358222]
[1756750321951,1.61297747,109060.0,109050.0,0.46809]
[1756750322363,0.76065747,109060.0,109050.0,0.46809]
[1756750322549,1.61597747,109060.0,109050.0,0.46809]
[1756750322755,1.25717747,109060.0,109050.0,0.46809]
[1756750323857,1.25717747,109060.0,109050.0,0.09809]
[1756750324063,1.25517747,109060.0,109050.0,0.09809]
[1756750324251,1.23518947,109060.0,109050.0,0.09809]
[1756750325157,0.37986947,109060.0,109050.0,0.09809]
[1756750325345,0.37986947,109060.0,109050.0,1.01358222]
[1756750325346,0.10986947,109060.0,109050.0,1.01358222]
[1756750325543,0.08986947,109060.0,109050.0,1.01358222]
[1756750325956,0.08986947,109060.0,109050.0,1.42340672]
[1756750326562,0.08886947,109060.0,109050.0,1.37438222]
[1756750328149,0.08686947,109060.0,109050.0,1.38364268]
[1756750333165,0.08686947,109060.0,109050.0,2.5441749]
[1756750333372,0.08686947,109060.0,109050.0,2.6358684]
[1756750334865,0.08686947,109060.0,109050.0,2.5441749]
[1756750335550,0.08686947,109060.0,109050.0,2.6368684]